fUSD/lending_fUSD_20240524
["ID","MTS","AMOUNT","RATE_DAILY","PERIOD"]
[327887648,1716580259629,-350.34,0.0003178,5]
[327887649,1716580259638,-500.0,0.0003178,5]
[327887650,1716580259648,-398.74,0.0003178,5]
[327887651,1716580259657,-500.0,0.0003178,5]
[327887652,1716580259666,-269.91,0.0003178,5]
[327887653,1716580259675,-435.61,0.0003178,5]
[327887654,1716580259686,-500.0,0.0003178,5]
[327887655,1716580259697,-500.0,0.0003178,5]
[327887656,1716580259708,-330.93,0.0003178,5]
[327887657,1716580259718,-500.0,0.0003178,5]
[327887658,1716580259728,-500.0,0.0003178,5]
[327887659,1716580259737,-303.74,0.0003178,5]
[327887660,1716580259746,-160.42687795,0.0003178,5]
[327887661,1716580259755,-242.81,0.0003178,5]
[327887662,1716580259766,-500.0,0.0003178,5]
[327887663,1716580259775,-596.07,0.0003178,5]
[327887664,1716580259786,-293.61,0.0003178,5]
[327887665,1716580259795,-500.0,0.0003178,5]
[327887666,1716580259806,-540.72,0.0003178,5]
[327887667,1716580259817,-500.0,0.0003178,5]
[327887668,1716580259831,-500.0,0.0003178,5]
[327887669,1716580259840,-500.0,0.0003178,5]
[327887670,1716580259848,-500.0,0.0003178,5]
[327887671,1716580259859,-500.0,0.0003178,5]
[327887672,1716580259871,-500.0,0.0003178,5]
[327887673,1716580259881,-500.0,0.0003178,5]
[327887674,1716580259892,-500.0,0.0003178,5]
[327887675,1716580259903,-172.21686287,0.0003178,5]
[327887676,1716580259912,-500.0,0.0003178,5]
[327887677,1716580259921,-500.0,0.0003178,5]
[327887678,1716580259930,-495.0,0.0003178,5]
[327887679,1716580259940,-506.08,0.0003178,5]
[327887680,1716580259950,-500.0,0.0003178,5]
[327887681,1716580259960,-500.0,0.0003178,5]
[327887682,1716580259971,-500.0,0.0003178,5]
[327887683,1716580259982,-500.0,0.0003178,5]
[327887684,1716580259992,-500.0,0.0003178,5]
[327887685,1716580260002,-500.0,0.0003178,5]
[327887686,1716580260011,-500.0,0.0003178,5]
[327887687,1716580260020,-500.0,0.0003178,5]
[327887688,1716580260029,-500.0,0.0003178,5]
[327887689,1716580260039,-517.91,0.0003178,5]
[327887690,1716580260049,-500.0,0.0003178,5]
[327887691,1716580260058,-500.0,0.0003178,5]
[327887692,1716580260069,-500.0,0.0003178,5]
[327887693,1716580260078,-500.0,0.0003178,5]
[327887694,1716580260088,-500.0,0.0003178,5]
[327887695,1716580260100,-500.0,0.0003178,5]
[327887696,1716580260111,-500.0,0.0003178,5]
[327887697,1716580260119,-500.0,0.0003178,5]
[327887698,1716580260128,-500.0,0.0003178,5]
[327887699,1716580260137,-500.0,0.0003178,5]
[327887700,1716580260148,-575.81,0.0003178,5]
[327887701,1716580260158,-500.0,0.0003178,5]
[327887702,1716580260168,-500.0,0.0003178,5]
[327887703,1716580260177,-642.71,0.0003178,5]
[327887704,1716580260187,-500.0,0.0003178,5]
[327887705,1716580260195,-500.0,0.0003178,5]
[327887706,1716580260204,-500.0,0.0003178,5]
[327887707,1716580260214,-500.0,0.0003178,5]
[327887708,1716580260223,-407.61,0.0003178,5]
[327887709,1716580260233,-500.0,0.0003178,5]
[327887710,1716580260242,-500.0,0.0003178,5]
[327887711,1716580260251,-500.0,0.0003178,5]
[327887712,1716580260261,-500.0,0.0003178,5]
[327887713,1716580260270,-500.0,0.0003178,5]
[327887714,1716580260279,-500.0,0.0003178,5]
[327887715,1716580260289,-500.0,0.0003178,5]
[327887716,1716580260298,-889.21,0.0003178,5]
[327887717,1716580260308,-500.0,0.0003178,5]
[327887718,1716580260319,-500.0,0.0003178,5]
[327887719,1716580260329,-313.78503828,0.0003178,5]
[327887720,1716580260339,-500.0,0.0003178,5]
[327887721,1716580260348,-500.0,0.0003178,5]
[327887722,1716580260358,-500.0,0.0003178,5]
[327887723,1716580260367,-588.15,0.0003178,5]
[327887724,1716580260376,-500.0,0.0003178,5]
[327887725,1716580260386,-500.0,0.0003178,5]
[327887726,1716580260395,-1339.48,0.0003178,5]
[327887727,1716580260404,-232.1,0.0003178,5]
[327887728,1716580260413,-500.0,0.0003178,5]
[327887729,1716580260422,-171.07536375,0.0003178,5]
[327887730,1716580260431,-500.0,0.0003178,5]
[327887731,1716580260440,-500.0,0.0003178,5]
[327887732,1716580260449,-513.06,0.0003178,5]
[327887733,1716580260460,-500.0,0.0003178,5]
[327887734,1716580260469,-500.0,0.0003178,5]
[327887735,1716580260478,-500.0,0.0003178,5]
[327887736,1716580260488,-500.0,0.0003178,5]
[327887737,1716580260497,-589.12,0.0003178,5]
[327887738,1716580260506,-500.0,0.0003178,5]
[327887739,1716580260517,-500.0,0.0003178,5]
[327887740,1716580260527,-491.71,0.0003178,5]
[327887741,1716580260541,-500.0,0.0003178,5]
[327887742,1716580260551,-500.0,0.0003178,5]
[327887743,1716580260562,-500.0,0.0003178,5]
[327887744,1716580260571,-500.0,0.0003178,5]
[327887745,1716580260581,-1681.42,0.0003178,5]
[327887746,1716580260591,-500.0,0.0003178,5]
[327887747,1716580260601,-500.0,0.0003178,5]
[327887748,1716580260611,-500.0,0.0003178,5]
[327887749,1716580260621,-500.0,0.0003178,5]
[327887750,1716580260632,-642.68,0.0003178,5]
[327887751,1716580260644,-500.0,0.0003178,5]
[327887752,1716580260653,-505.3,0.0003178,5]
[327887753,1716580260663,-500.0,0.0003178,5]
[327887754,1716580260673,-342.07,0.0003178,5]
[327887755,1716580260683,-500.0,0.0003178,5]
[327887756,1716580260692,-521.67,0.0003178,5]
[327887757,1716580260702,-500.0,0.0003178,5]
[327887758,1716580260870,-234.4,0.0003178,5]
[327887759,1716580260879,-500.0,0.0003178,5]
[327887760,1716580260888,-500.0,0.0003178,5]
[327887761,1716580260900,-500.0,0.0003178,2]
[327887762,1716580260910,-500.0,0.0003178,5]
[327887763,1716580260920,-500.0,0.0003178,5]
[327887764,1716580260931,-500.0,0.0003178,5]
[327887765,1716580260941,-636.84,0.0003178,5]
[327887766,1716580260952,-500.0,0.0003178,5]
[327887767,1716580260962,-500.0,0.0003178,5]
[327887768,1716580260972,-204.83,0.0003178,5]
[327887769,1716580260981,-3985.81,0.0003178,5]
[327887770,1716580260993,-500.0,0.0003178,5]
[327887771,1716580261003,-268.28661302,0.0003178,5]
[327887772,1716580261014,-500.0,0.0003178,5]
[327887773,1716580261025,-500.0,0.0003178,5]
[327887774,1716580261034,-500.0,0.0003178,5]
[327887775,1716580261044,-285.36217955,0.0003178,5]
[327887776,1716580261054,-957.13,0.0003178,5]
[327887777,1716580261065,-500.0,0.0003178,5]
[327887778,1716580261074,-573.9,0.0003178,5]
[327887779,1716580261083,-500.0,0.0003178,5]
[327887780,1716580261093,-500.0,0.0003178,5]
[327887781,1716580261102,-479.08908088,0.0003178,5]
[327887782,1716580261111,-500.0,0.0003178,5]
[327887783,1716580261120,-369.64,0.0003178,5]
[327887784,1716580261130,-217.67,0.0003178,5]
[327887785,1716580261139,-500.0,0.0003178,5]
[327887786,1716580261150,-500.0,0.0003178,5]
[327887787,1716580261159,-531.29,0.0003178,5]
[327887788,1716580261169,-500.0,0.0003178,5]
[327887789,1716580261179,-500.0,0.0003178,5]
[327887790,1716580261190,-500.0,0.0003178,5]
[327887791,1716580261199,-500.0,0.0003178,5]
[327887792,1716580261209,-500.0,0.0003178,5]
[327887793,1716580261219,-500.0,0.0003178,5]
[327887794,1716580261229,-279.4,0.0003178,5]
[327887795,1716580261240,-500.0,0.0003178,5]
[327887796,1716580261250,-500.0,0.0003178,5]
[327887797,1716580261259,-500.0,0.0003178,5]
[327887798,1716580261270,-500.0,0.0003178,5]
[327887799,1716580261279,-500.0,0.0003178,5]
[327887800,1716580261289,-406.73,0.0003178,5]
[327887801,1716580261298,-500.0,0.0003178,5]
[327887802,1716580261308,-500.0,0.0003178,5]
[327887803,1716580261320,-500.0,0.0003178,5]
[327887804,1716580261329,-550.59,0.0003178,5]
[327887805,1716580261339,-344.41,0.0003178,5]
[327887806,1716580261349,-500.0,0.0003178,5]
[327887807,1716580261359,-456.24,0.0003178,5]
[327887808,1716580261368,-641.34,0.0003178,5]
[327887809,1716580261378,-514.47489577,0.0003178,5]
[327887810,1716580261388,-500.0,0.0003178,5]
[327887811,1716580261397,-500.0,0.0003178,5]
[327887812,1716580261406,-500.0,0.0003178,5]
[327887813,1716580261417,-500.0,0.0003178,5]
[327887814,1716580261426,-500.0,0.0003178,5]
[327887815,1716580261435,-292.08,0.0003178,5]
[327887816,1716580261445,-500.0,0.0003178,5]
[327887817,1716580261455,-500.0,0.0003178,5]
[327887818,1716580261464,-500.0,0.0003178,5]
[327887819,1716580261476,-500.0,0.0003178,5]
[327887820,1716580261486,-500.0,0.0003178,5]
[327887821,1716580261496,-500.0,0.0003178,5]
[327887822,1716580261506,-2690.54,0.0003178,5]
[327887823,1716580261516,-981.3,0.0003178,5]
[327887824,1716580261526,-765.74,0.0003178,5]
[327887825,1716580261536,-500.0,0.0003178,5]
[327887826,1716580261545,-500.0,0.0003178,5]
[327887827,1716580261555,-500.0,0.0003178,5]
[327887828,1716580261565,-500.0,0.0003178,5]
[327887829,1716580261575,-500.0,0.0003178,5]
[327887830,1716580261585,-500.0,0.0003178,5]
[327887831,1716580261595,-500.0,0.0003178,5]
[327887832,1716580261604,-500.0,0.0003178,5]
[327887833,1716580261614,-1006.75,0.0003178,5]
[327887834,1716580261624,-500.0,0.0003178,5]
[327887835,1716580261634,-1344.33,0.0003178,5]
[327887836,1716580261644,-500.0,0.0003178,5]
[327887837,1716580261654,-500.0,0.0003178,5]
[327887838,1716580261664,-1178.9,0.0003178,5]
[327887839,1716580261674,-500.0,0.0003178,5]
[327887840,1716580261683,-500.0,0.0003178,5]
[327887841,1716580261693,-318.22,0.0003178,5]
[327887842,1716580261703,-502.37123691,0.0003178,5]
[327887843,1716580261713,-500.0,0.0003178,5]
[327887844,1716580261722,-500.0,0.0003178,5]
[327887845,1716580261732,-549.31,0.0003178,5]
[327887846,1716580261741,-680.33,0.0003178,5]
[327887847,1716580261751,-500.0,0.0003178,5]
[327887848,1716580261761,-500.0,0.0003178,5]
[327887849,1716580261771,-500.0,0.0003178,5]
[327887850,1716580261781,-500.0,0.0003178,5]
[327887851,1716580261791,-500.0,0.0003178,5]
[327887852,1716580261801,-404.54,0.0003178,5]
[327887853,1716580261812,-1834.86,0.0003178,5]
[327887854,1716580261824,-500.0,0.0003178,5]
[327887855,1716580261834,-500.0,0.0003178,5]
[327887856,1716580261844,-500.0,0.0003178,5]
[327887857,1716580261854,-500.0,0.0003178,5]
[327887858,1716580261865,-389.36297753,0.0003178,5]
[327887859,1716580261875,-520.05,0.0003178,5]
[327887860,1716580261885,-500.0,0.0003178,5]
[327887861,1716580261894,-500.0,0.0003178,5]
[327887862,1716580261906,-500.0,0.0003178,5]
[327887863,1716580261916,-500.0,0.0003178,5]
[327887864,1716580261926,-500.0,0.0003178,5]
[327887865,1716580261935,-553.07,0.0003178,5]
[327887866,1716580261945,-4616.88,0.0003178,5]
[327887867,1716580261955,-500.0,0.0003178,5]
[327887868,1716580261965,-500.0,0.0003178,5]
[327887869,1716580261975,-505.62,0.0003178,5]
[327887870,1716580261985,-500.0,0.0003178,5]
[327887871,1716580261995,-500.0,0.0003178,5]
[327887872,1716580262005,-500.0,0.0003178,5]
[327887873,1716580262014,-500.0,0.0003178,5]
[327887874,1716580262024,-500.0,0.0003178,5]
[327887875,1716580262034,-500.0,0.0003178,5]
[327887876,1716580262044,-913.32,0.0003178,5]
[327887877,1716580262054,-500.0,0.0003178,2]
[327887878,1716580262064,-231.72479767,0.0003178,5]
[327887879,1716580262074,-500.0,0.0003178,5]
[327887880,1716580262084,-500.0,0.0003178,5]
[327887881,1716580262094,-500.0,0.0003178,5]
[327887882,1716580262104,-196.87,0.0003178,5]
[327887883,1716580262114,-500.0,0.0003178,5]
[327887884,1716580262126,-500.0,0.0003178,5]
[327887885,1716580262136,-500.0,0.0003178,5]
[327887886,1716580262146,-500.0,0.0003178,5]
[327887887,1716580262156,-500.0,0.0003178,5]
[327887888,1716580262166,-500.0,0.0003178,5]
[327887889,1716580262175,-500.0,0.0003178,5]
[327887890,1716580262185,-500.0,0.0003178,5]
[327887891,1716580262195,-500.0,0.0003178,5]
[327887892,1716580262204,-500.0,0.0003178,5]
[327887893,1716580262214,-500.0,0.0003178,5]
[327887894,1716580262223,-500.0,0.0003178,5]
[327887895,1716580262233,-795.66,0.0003178,5]
[327887896,1716580262243,-500.0,0.0003178,5]
[327887897,1716580262253,-500.0,0.0003178,5]
[327887898,1716580262263,-500.0,0.0003178,5]
[327887899,1716580262273,-300.0,0.000319,11]
[327887900,1716580262283,-159.8393471,0.0003195,7]
[327887901,1716580262292,-224.83242169,0.0003195,7]
[327887902,1716580262302,-154.74061911,0.0003195,7]
[327887903,1716580262312,-154.57456773,0.00031993,7]
[327887904,1716580262322,-500.0,0.00032,2]
[327887905,1716580262332,-1000.0,0.00032,120]
[327887906,1716580262342,-1307.9604218,0.00032,10]
[327887907,1716580262352,-150.0,0.00032,12]
[327887908,1716580262363,-156.62829292,0.00032,4]
[327887909,1716580262373,-500.0,0.00032054,5]
[327887910,1716580262383,-510.27429372,0.00032054,5]
[327887911,1716580262393,-250.0,0.00032054,5]
[327887912,1716580262402,-500.0,0.00032054,5]
[327887913,1716580262412,-509.94,0.00032054,5]
[327887914,1716580262422,-500.0,0.00032054,5]
[327887915,1716580262432,-500.0,0.00032054,5]
[327887916,1716580262442,-500.0,0.00032054,5]
[327887917,1716580262452,-500.0,0.00032054,5]
[327887918,1716580262461,-652.73,0.00032054,5]
[327887919,1716580262471,-636.42956689,0.00032054,5]
[327887920,1716580262480,-500.0,0.00032054,5]
[327887921,1716580262490,-500.0,0.00032054,5]
[327887922,1716580262499,-500.0,0.00032054,5]
[327887923,1716580262509,-512.10997538,0.00032054,5]
[327887924,1716580262520,-500.0,0.00032054,5]
[327887925,1716580262530,-508.69,0.00032054,5]
[327887926,1716580262540,-500.0,0.00032054,5]
[327887927,1716580262549,-541.14,0.00032054,5]
[327887928,1716580262560,-500.0,0.00032054,5]
[327887929,1716580262571,-500.0,0.00032054,5]
[327887930,1716580262581,-417.0512672,0.00032054,5]
[327887931,1716580262590,-500.0,0.00032054,5]
[327887932,1716580262599,-500.0,0.00032054,5]
[327887933,1716580262609,-500.0,0.00032054,5]
[327887934,1716580262619,-263.1,0.00032054,5]
[327887935,1716580262628,-500.0,0.00032054,5]
[327887936,1716580262638,-500.0,0.00032054,5]
[327887937,1716580262647,-290.22107248,0.00032054,5]
[327887938,1716580262658,-500.0,0.00032054,5]
[327887939,1716580262667,-500.0,0.00032054,5]
[327887940,1716580262677,-500.0,0.00032054,5]
[327887941,1716580262687,-500.0,0.00032054,5]
[327887942,1716580262696,-500.0,0.00032054,5]
[327887943,1716580262705,-500.0,0.00032054,5]
[327887944,1716580262715,-2498.14,0.00032054,5]
[327887945,1716580262725,-500.0,0.00032054,5]
[327887946,1716580262734,-500.59872537,0.00032054,5]
[327887947,1716580262744,-162.6,0.00032054,5]
[327887948,1716580262754,-408.95,0.00032054,5]
[327887949,1716580262763,-500.0,0.00032054,5]
[327887950,1716580262773,-200.0,0.00032054,5]
[327887951,1716580262783,-500.0,0.00032054,5]
[327887952,1716580262793,-567.38,0.00032054,5]
[327887953,1716580262803,-237.74,0.00032054,5]
[327887954,1716580262817,-292.25,0.00032054,5]
[327887955,1716580262826,-500.0,0.00032054,5]
[327887956,1716580262836,-594.01,0.00032054,5]
[327887957,1716580262846,-500.0,0.00032054,5]
[327887958,1716580262866,-500.0,0.00032054,5]
[327887959,1716580262877,-500.0,0.00032054,5]
[327887960,1716580262886,-500.0,0.00032054,5]
[327887961,1716580262897,-500.0,0.00032054,5]
[327887962,1716580262906,-500.0,0.00032054,5]
[327887963,1716580262915,-256.29,0.00032054,5]
[327887964,1716580262924,-583.25,0.00032054,5]
[327887965,1716580262933,-627.47,0.00032054,5]
[327887966,1716580262943,-513.46142442,0.00032054,5]
[327887967,1716580262952,-500.0,0.00032054,5]
[327887968,1716580262961,-588.51,0.00032054,5]
[327887969,1716580262970,-500.0,0.00032054,5]
[327887970,1716580262980,-500.0,0.00032054,5]
[327887971,1716580262989,-551.12,0.00032054,5]
[327887972,1716580262998,-546.92,0.00032054,5]
[327887973,1716580263008,-500.0,0.00032054,5]
[327887974,1716580263018,-560.96,0.00032054,5]
[327887975,1716580263028,-500.0,0.00032054,5]
[327887976,1716580263037,-500.0,0.00032054,5]
[327887977,1716580263047,-500.0,0.00032054,5]
[327887978,1716580263056,-500.0,0.00032054,5]
[327887979,1716580263066,-567.71,0.00032054,5]
[327887980,1716580263076,-500.0,0.00032054,5]
[327887981,1716580263085,-500.0,0.00032054,5]
[327887982,1716580263095,-642.71,0.00032054,5]
[327887983,1716580263104,-500.0,0.00032054,5]
[327887984,1716580263114,-500.0,0.00032054,5]
[327887985,1716580263123,-328.93,0.00032054,5]
[327887986,1716580263133,-500.0,0.00032054,5]
[327887987,1716580263142,-500.0,0.00032054,5]
[327887988,1716580263152,-500.0,0.00032054,5]
[327887989,1716580263161,-500.0,0.00032054,5]
[327887990,1716580263170,-500.0,0.00032054,5]
[327887991,1716580263180,-500.0,0.00032054,5]
[327887992,1716580263190,-347.87725229,0.00032054,5]
[327887993,1716580263200,-500.0,0.00032054,5]
[327887994,1716580263209,-889.21,0.00032054,5]
[327887995,1716580263218,-500.0,0.00032054,5]
[327887996,1716580263228,-500.0,0.00032054,5]
[327887997,1716580263238,-500.0,0.00032054,5]
[327887998,1716580263247,-500.0,0.00032054,5]
[327887999,1716580263256,-500.0,0.00032054,5]
[327888000,1716580263266,-500.0,0.00032054,5]
[327888001,1716580263275,-1339.48,0.00032054,5]
[327888002,1716580263285,-500.0,0.00032054,5]
[327888003,1716580263362,-500.0,0.00032054,5]
[327888004,1716580263372,-225.45,0.00032054,5]
[327888005,1716580263382,-500.0,0.00032054,5]
[327888006,1716580263391,-500.0,0.00032054,5]
[327888007,1716580263401,-500.0,0.00032054,5]
[327888008,1716580263410,-500.0,0.00032054,5]
[327888009,1716580263419,-589.12,0.00032054,5]
[327888010,1716580263428,-500.0,0.00032054,5]
[327888011,1716580263437,-500.0,0.00032054,5]
[327888012,1716580263446,-589.84,0.00032054,5]
[327888013,1716580263455,-320.38,0.00032054,5]
[327888014,1716580263465,-1681.42,0.00032054,5]
[327888015,1716580263474,-500.0,0.00032054,5]
[327888016,1716580263483,-618.96,0.00032054,5]
[327888017,1716580263493,-500.0,0.00032054,5]
[327888018,1716580263503,-500.0,0.00032054,5]
[327888019,1716580263512,-500.0,0.00032054,5]
[327888020,1716580263521,-500.0,0.00032054,5]
[327888021,1716580263530,-500.0,0.00032054,5]
[327888022,1716580263540,-500.0,0.00032054,5]
[327888023,1716580263549,-500.0,0.00032054,5]
[327888024,1716580263559,-500.0,0.00032054,2]
[327888025,1716580263571,-500.0,0.00032054,5]
[327888026,1716580263581,-500.0,0.00032054,5]
[327888027,1716580263589,-500.0,0.00032054,5]
[327888028,1716580263599,-500.0,0.00032054,5]
[327888029,1716580263608,-500.0,0.00032054,5]
[327888030,1716580263617,-3985.81,0.00032054,5]
[327888031,1716580263627,-552.32,0.00032054,5]
[327888032,1716580263636,-407.67601707,0.00032054,5]
[327888033,1716580263646,-500.0,0.00032054,5]
[327888034,1716580263655,-500.0,0.00032054,5]
[327888035,1716580263665,-957.13,0.00032054,5]
[327888036,1716580263674,-629.62,0.00032054,5]
[327888037,1716580263684,-500.0,0.00032054,5]
[327888038,1716580263693,-584.9,0.00032054,5]
[327888039,1716580263702,-500.0,0.00032054,5]
[327888040,1716580263712,-500.0,0.00032054,5]
[327888041,1716580263721,-500.0,0.00032054,5]
[327888042,1716580263730,-500.0,0.00032054,5]
[327888043,1716580263739,-500.0,0.00032054,5]
[327888044,1716580263749,-500.0,0.00032054,5]
[327888045,1716580263761,-511.83,0.00032054,5]
[327888046,1716580263771,-500.0,0.00032054,5]
[327888047,1716580263780,-536.44,0.00032054,5]
[327888048,1716580263790,-500.0,0.00032054,5]
[327888049,1716580263799,-500.0,0.00032054,5]
[327888050,1716580263810,-500.0,0.00032054,5]
[327888051,1716580263823,-500.0,0.00032054,5]
[327888052,1716580263833,-500.0,0.00032054,5]
[327888053,1716580263842,-500.0,0.00032054,5]
[327888054,1716580263851,-500.0,0.00032054,5]
[327888055,1716580263861,-500.0,0.00032054,5]
[327888056,1716580263871,-550.59,0.00032054,5]
[327888057,1716580263880,-500.0,0.00032054,5]
[327888058,1716580263891,-500.0,0.00032054,5]
[327888059,1716580263901,-500.0,0.00032054,5]
[327888060,1716580263914,-500.0,0.00032054,5]
[327888061,1716580263923,-500.0,0.00032054,5]
[327888062,1716580263932,-500.0,0.00032054,5]
[327888063,1716580263941,-500.0,0.00032054,5]
[327888064,1716580263951,-412.84,0.00032054,5]
[327888065,1716580263960,-500.0,0.00032054,5]
[327888066,1716580263970,-500.0,0.00032054,5]
[327888067,1716580263979,-500.0,0.00032054,5]
[327888068,1716580263988,-500.0,0.00032054,5]
[327888069,1716580263998,-2690.54,0.00032054,5]
[327888070,1716580264007,-981.3,0.00032054,5]
[327888071,1716580264016,-765.74,0.00032054,5]
[327888072,1716580264025,-500.0,0.00032054,5]
[327888073,1716580264034,-500.0,0.00032054,5]
[327888074,1716580264043,-500.0,0.00032054,5]
[327888075,1716580264054,-500.0,0.00032054,5]
[327888076,1716580264064,-500.0,0.00032054,5]
[327888077,1716580264074,-500.0,0.00032054,5]
[327888078,1716580264083,-500.0,0.00032054,5]
[327888079,1716580264093,-1006.75,0.00032054,5]
[327888080,1716580264102,-500.0,0.00032054,5]
[327888081,1716580264112,-1344.33,0.00032054,5]
[327888082,1716580264122,-493.63,0.00032054,5]
[327888083,1716580264131,-1178.9,0.00032054,5]
[327888084,1716580264141,-500.0,0.00032054,5]
[327888085,1716580264150,-361.04304065,0.00032054,5]
[327888086,1716580264161,-561.66,0.00032054,5]
[327888087,1716580264171,-500.0,0.00032054,5]
[327888088,1716580264180,-680.33,0.00032054,5]
[327888089,1716580264190,-500.0,0.00032054,5]
[327888090,1716580264200,-500.0,0.00032054,5]
[327888091,1716580264209,-500.0,0.00032054,5]
[327888092,1716580264219,-500.0,0.00032054,5]
[327888093,1716580264230,-1834.86,0.00032054,5]
[327888094,1716580264240,-500.0,0.00032054,5]
[327888095,1716580264249,-428.33255692,0.00032054,5]
[327888096,1716580264259,-522.47,0.00032054,5]
[327888097,1716580264268,-520.05,0.00032054,5]
[327888098,1716580264278,-500.0,0.00032054,5]
[327888099,1716580264287,-500.0,0.00032054,5]
[327888100,1716580264297,-152.26,0.00032054,5]
[327888101,1716580264306,-569.86,0.00032054,5]
[327888102,1716580264318,-4616.88,0.00032054,5]
[327888103,1716580264327,-327.14200949,0.00032054,5]
[327888104,1716580264336,-500.0,0.00032054,5]
[327888105,1716580264346,-500.0,0.00032054,5]
[327888106,1716580264355,-500.0,0.00032054,5]
[327888107,1716580264365,-500.0,0.00032054,5]
[327888108,1716580264374,-500.0,0.00032054,5]
[327888109,1716580264384,-500.0,0.00032054,5]
[327888110,1716580264393,-913.32,0.00032054,5]
[327888111,1716580264403,-500.0,0.00032054,2]
[327888112,1716580264412,-500.0,0.00032054,5]
[327888113,1716580264422,-500.0,0.00032054,5]
[327888114,1716580264432,-208.14,0.00032054,5]
[327888115,1716580264441,-398.39,0.00032054,5]
[327888116,1716580264451,-500.0,0.00032054,5]
[327888117,1716580264461,-500.0,0.00032054,5]
[327888118,1716580264471,-500.0,0.00032054,5]
[327888119,1716580264480,-421.49228935,0.00032054,5]
[327888120,1716580264490,-500.0,0.00032054,5]
[327888121,1716580264499,-500.0,0.00032054,5]
[327888122,1716580264509,-795.66,0.00032054,5]
[327888123,1716580264518,-500.0,0.00032054,5]
[327888124,1716580264527,-253.04,0.00032054,5]
[327888125,1716580264537,-319.91924595,0.0003221,2]
[327888126,1716580264547,-153.51597192,0.00032278,7]
[327888127,1716580264556,-492.0,0.00032306,3]
[327888128,1716580264565,-500.0,0.00032328,5]
[327888129,1716580264575,-250.0,0.00032328,5]
[327888130,1716580264584,-614.8795795,0.00032328,5]
[327888131,1716580264594,-500.0,0.00032328,5]
[327888132,1716580264603,-500.0,0.00032328,5]
[327888133,1716580264614,-500.0,0.00032328,5]
[327888134,1716580264624,-500.0,0.00032328,5]
[327888135,1716580264636,-652.73,0.00032328,5]
[327888136,1716580264648,-500.0,0.00032328,5]
[327888137,1716580264658,-500.0,0.00032328,5]
[327888138,1716580264668,-613.2,0.00032328,5]
[327888139,1716580264680,-500.0,0.00032328,5]
[327888140,1716580264690,-503.88,0.00032328,5]
[327888141,1716580264701,-500.0,0.00032328,5]
[327888142,1716580264711,-500.0,0.00032328,5]
[327888143,1716580264722,-485.0,0.00032328,5]
[327888144,1716580264732,-495.26,0.00032328,5]
[327888145,1716580264741,-500.0,0.00032328,5]
[327888146,1716580264751,-500.0,0.00032328,5]
[327888147,1716580264761,-500.0,0.00032328,5]